[Event "Titled Tuesday Blitz February 28 Late 2023"]
[White "Lawson, Eric"]
[Black "Fedoseev, Vladimir"]
[WhiteFideId "2604116"]
[BlackFideId "24130737"]
[WhiteElo "2505"]
[BlackElo "2752"]
[Result "0-1"]
[Round "01"]
[TimeControl "180+2"]
[Date "2023.02.28"]
[WhiteClock "0:00:21"]
[BlackClock "0:00:08"]

1. e4 {[%clk 0:02:58]}  c5 {[%clk 0:02:49]} 2. Nf3 {[%clk 0:02:58]}  d6 {[%clk 0:02:49]} 3. d4 {[%clk 0:02:58]}  cxd4 {[%clk 0:02:50]} 4. Nxd4 {[%clk 0:02:59]}  Nf6 {[%clk 0:02:49]} 5. Nc3 {[%clk 0:02:59]}  a6 {[%clk 0:02:50]} 6. h3 {[%clk 0:03:00]}  e5 {[%clk 0:02:45]} 7. Nde2 {[%clk 0:03:00]}  h5 {[%clk 0:02:44]} 8. g3 {[%clk 0:03:00]}  Be7 {[%clk 0:02:39]} 9. Bg2 {[%clk 0:02:59]}  b5 {[%clk 0:02:37]} 10. Nd5 {[%clk 0:02:58]}  Nxd5 {[%clk 0:02:37]} 11. Qxd5 {[%clk 0:02:59]}  Ra7 {[%clk 0:02:37]} 12. Be3 {[%clk 0:02:59]}  Rb7 {[%clk 0:02:30]} 13. O-O {[%clk 0:02:57]}  Qc7 {[%clk 0:02:27]} 14. Rfc1 {[%clk 0:02:51]}  O-O {[%clk 0:02:07]} 15. a4 {[%clk 0:02:30]}  Be6 {[%clk 0:02:04]} 16. Qd1 {[%clk 0:02:26]}  b4 {[%clk 0:01:29]} 17. c4 {[%clk 0:02:16]}  Nd7 {[%clk 0:01:03]} 18. a5 {[%clk 0:02:09]}  Nc5 {[%clk 0:00:58]} 19. b3 {[%clk 0:02:05]}  Qc8 {[%clk 0:00:52]} 20. Kh2 {[%clk 0:02:05]}  Bd7 {[%clk 0:00:48]} 21. f4 {[%clk 0:02:03]}  Bc6 {[%clk 0:00:47]} 22. Bxc5 {[%clk 0:02:01]}  dxc5 {[%clk 0:00:46]} 23. fxe5 {[%clk 0:01:41]}  Rd7 {[%clk 0:00:42]} 24. Qe1 {[%clk 0:01:41]}  Qc7 {[%clk 0:00:41]} 25. Nf4 {[%clk 0:01:38]}  Qxe5 {[%clk 0:00:40]} 26. Nd5 {[%clk 0:01:37]}  h4 {[%clk 0:00:32]} 27. Bf3 {[%clk 0:01:16]}  Bd6 {[%clk 0:00:31]} 28. Kg2 {[%clk 0:01:15]}  hxg3 {[%clk 0:00:26]} 29. Ra2 {[%clk 0:01:11]}  Rdd8 {[%clk 0:00:23]} 30. Rd2 {[%clk 0:01:10]}  Rde8 {[%clk 0:00:22]} 31. Rcd1 {[%clk 0:01:10]}  f5 {[%clk 0:00:20]} 32. Re2 {[%clk 0:01:05]}  f4 {[%clk 0:00:14]} 33. Red2 {[%clk 0:01:01]}  Re6 {[%clk 0:00:14]} 34. Qe2 {[%clk 0:00:51]}  Rh6 {[%clk 0:00:14]} 35. Bg4 {[%clk 0:00:46]}  Bd7 {[%clk 0:00:11]} 36. Bxd7 {[%clk 0:00:42]}  f3+ {[%clk 0:00:12]} 37. Qxf3 {[%clk 0:00:42]}  Rxf3 {[%clk 0:00:12]} 38. Kxf3 {[%clk 0:00:43]}  Qg5 {[%clk 0:00:09]} 39. Bg4 {[%clk 0:00:37]}  Be5 {[%clk 0:00:09]} 40. Kg2 {[%clk 0:00:30]}  Kh7 {[%clk 0:00:10]} 41. Rd3 {[%clk 0:00:28]}  Rh4 {[%clk 0:00:09]} 42. Rf3 {[%clk 0:00:27]}  Qh6 {[%clk 0:00:09]} 43. Rh1 {[%clk 0:00:25]}  Qd2+ {[%clk 0:00:08]} 44. Kg1 {[%clk 0:00:24]}  Bd4+ {[%clk 0:00:08]} 45. Kf1 {[%clk 0:00:21]}  g2# {[%clk 0:00:08]} 0-1


[Site "https://www.chess.com"]

[Event "Titled Tuesday Blitz February 28 Late 2023"]
[White "Deac, Bogdan-Daniel"]
[Black "Ferreira, Vitor Hugo Vieira"]
[WhiteFideId "1226380"]
[BlackFideId "2119765"]
[WhiteElo "2649"]
[BlackElo "2146"]
[Result "1/2-1/2"]
[Round "01"]
[TimeControl "180+2"]
[Date "2023.02.28"]
[WhiteClock "0:00:12"]
[BlackClock "0:00:18"]

1. b3 {[%clk 0:03:00]}  Nf6 {[%clk 0:02:09]} 2. Bb2 {[%clk 0:02:59]}  d5 {[%clk 0:02:08]} 3. e3 {[%clk 0:02:55]}  a6 {[%clk 0:02:07]} 4. c4 {[%clk 0:02:55]}  e6 {[%clk 0:02:04]} 5. Nf3 {[%clk 0:02:55]}  Bd6 {[%clk 0:02:01]} 6. g3 {[%clk 0:02:55]}  O-O {[%clk 0:02:01]} 7. Bg2 {[%clk 0:02:55]}  b6 {[%clk 0:01:53]} 8. cxd5 {[%clk 0:02:52]}  exd5 {[%clk 0:01:52]} 9. O-O {[%clk 0:02:53]}  Bb7 {[%clk 0:01:53]} 10. Nc3 {[%clk 0:02:52]}  Nbd7 {[%clk 0:01:52]} 11. Rc1 {[%clk 0:02:52]}  c5 {[%clk 0:01:53]} 12. d4 {[%clk 0:02:51]}  Re8 {[%clk 0:01:51]} 13. Ne2 {[%clk 0:02:47]}  Qe7 {[%clk 0:01:48]} 14. Nf4 {[%clk 0:02:42]}  Rac8 {[%clk 0:01:46]} 15. dxc5 {[%clk 0:02:35]}  bxc5 {[%clk 0:01:45]} 16. Nd3 {[%clk 0:02:34]}  c4 {[%clk 0:01:41]} 17. Nf4 {[%clk 0:02:32]}  Ba3 {[%clk 0:01:34]} 18. Qe2 {[%clk 0:02:25]}  Bxb2 {[%clk 0:01:34]} 19. Qxb2 {[%clk 0:02:25]}  Qb4 {[%clk 0:01:32]} 20. Nd4 {[%clk 0:02:22]}  Ne5 {[%clk 0:01:25]} 21. Qa1 {[%clk 0:02:00]}  Ne4 {[%clk 0:01:11]} 22. bxc4 {[%clk 0:01:51]}  dxc4 {[%clk 0:01:07]} 23. Rb1 {[%clk 0:01:46]}  Qe7 {[%clk 0:01:07]} 24. Nf5 {[%clk 0:01:43]}  Qd7 {[%clk 0:01:05]} 25. Rxb7 {[%clk 0:01:39]}  Qxf5 {[%clk 0:00:56]} 26. Nd5 {[%clk 0:00:43]}  Nd2 {[%clk 0:00:48]} 27. Ne7+ {[%clk 0:00:11]}  Rxe7 {[%clk 0:00:48]} 28. Rxe7 {[%clk 0:00:12]}  Nef3+ {[%clk 0:00:47]} 29. Bxf3 {[%clk 0:00:12]}  Nxf3+ {[%clk 0:00:45]} 30. Kg2 {[%clk 0:00:12]}  Nh4+ {[%clk 0:00:18]} 31. Kg1 {[%clk 0:00:10]}  Nf3+ {[%clk 0:00:17]} 32. Kg2 {[%clk 0:00:10]}  Nh4+ {[%clk 0:00:17]} 33. gxh4 {[%clk 0:00:10]}  Qg4+ {[%clk 0:00:17]} 34. Kh1 {[%clk 0:00:10]}  Qf3+ {[%clk 0:00:17]} 35. Kg1 {[%clk 0:00:11]}  Qg4+ {[%clk 0:00:17]} 36. Kh1 {[%clk 0:00:11]}  Qf3+ {[%clk 0:00:18]} 37. Kg1 {[%clk 0:00:12]}  Qg4+ {[%clk 0:00:18]} 38. Kh1 {[%clk 0:00:12]} 1/2-1/2


[Site "https://www.chess.com"]

[Event "Titled Tuesday Blitz February 28 Late 2023"]
[White "ArchibaldCerveza29"]
[Black "Kramnik, Vladimir"]
[BlackFideId "4101588"]
[WhiteElo "2501"]
[BlackElo "2712"]
[Result "0-1"]
[Round "01"]
[TimeControl "180+2"]
[Date "2023.02.28"]
[WhiteClock "0:00:06"]
[BlackClock "0:01:07"]

1. d4 {[%clk 0:02:59]}  Nf6 {[%clk 0:02:58]} 2. c4 {[%clk 0:02:58]}  e6 {[%clk 0:02:58]} 3. Nc3 {[%clk 0:02:57]}  d5 {[%clk 0:02:58]} 4. cxd5 {[%clk 0:02:58]}  exd5 {[%clk 0:02:58]} 5. Bg5 {[%clk 0:02:59]}  c6 {[%clk 0:02:58]} 6. e3 {[%clk 0:02:59]}  Bd6 {[%clk 0:02:56]} 7. Bd3 {[%clk 0:02:58]}  O-O {[%clk 0:02:56]} 8. Qc2 {[%clk 0:02:57]}  h6 {[%clk 0:02:55]} 9. Bh4 {[%clk 0:02:57]}  Re8 {[%clk 0:02:53]} 10. Nge2 {[%clk 0:02:57]}  Nbd7 {[%clk 0:02:50]} 11. h3 {[%clk 0:02:52]}  Nb6 {[%clk 0:02:46]} 12. O-O {[%clk 0:02:49]}  Be6 {[%clk 0:02:43]} 13. Rae1 {[%clk 0:02:44]}  Rc8 {[%clk 0:02:41]} 14. Qd1 {[%clk 0:02:21]}  Be7 {[%clk 0:02:36]} 15. Bb1 {[%clk 0:02:15]}  Nc4 {[%clk 0:02:26]} 16. b3 {[%clk 0:01:50]}  Nd6 {[%clk 0:02:24]} 17. f3 {[%clk 0:01:34]}  c5 {[%clk 0:02:19]} 18. e4 {[%clk 0:01:13]}  cxd4 {[%clk 0:02:07]} 19. Na4 {[%clk 0:00:22]}  dxe4 {[%clk 0:02:04]} 20. fxe4 {[%clk 0:00:22]}  Ndxe4 {[%clk 0:01:43]} 21. Qxd4 {[%clk 0:00:17]}  Nc5 {[%clk 0:01:33]} 22. Qxd8 {[%clk 0:00:15]}  Rexd8 {[%clk 0:01:32]} 23. Nxc5 {[%clk 0:00:15]}  Bxc5+ {[%clk 0:01:31]} 24. Kh1 {[%clk 0:00:15]}  Bb4 {[%clk 0:01:28]} 25. Rd1 {[%clk 0:00:14]}  Rxd1 {[%clk 0:01:27]} 26. Rxd1 {[%clk 0:00:15]}  Nd5 {[%clk 0:01:26]} 27. Be1 {[%clk 0:00:13]}  Ne3 {[%clk 0:01:23]} 28. Rd3 {[%clk 0:00:08]}  Bxe1 {[%clk 0:01:18]} 29. Rxe3 {[%clk 0:00:08]}  Ba5 {[%clk 0:01:15]} 30. g3 {[%clk 0:00:07]}  Bb6 {[%clk 0:01:12]} 31. Rd3 {[%clk 0:00:05]}  Bxh3 {[%clk 0:01:10]} 32. Kh2 {[%clk 0:00:05]}  Bf5 {[%clk 0:01:10]} 33. Rd1 {[%clk 0:00:06]}  Bxb1 {[%clk 0:01:09]} 34. Rxb1 {[%clk 0:00:07]}  Rc2 {[%clk 0:01:09]} 35. Re1 {[%clk 0:00:06]}  Bf2 {[%clk 0:01:07]} 0-1


[Site "https://www.chess.com"]

[Event "Titled Tuesday Blitz February 28 Late 2023"]
[White "Yoo, Christopher Woojin"]
[Black "Bilan, Danila"]
[WhiteFideId "30909694"]
[BlackFideId "24161918"]
[WhiteElo "2519"]
[BlackElo "2182"]
[Result "1-0"]
[Round "01"]
[TimeControl "180+2"]
[Date "2023.02.28"]
[WhiteClock "0:00:15"]
[BlackClock "0:00:06"]

1. d4 {[%clk 0:02:59]}  d5 {[%clk 0:02:58]} 2. c4 {[%clk 0:02:59]}  c6 {[%clk 0:02:58]} 3. Nc3 {[%clk 0:02:57]}  Nf6 {[%clk 0:02:58]} 4. cxd5 {[%clk 0:02:57]}  cxd5 {[%clk 0:02:57]} 5. Bf4 {[%clk 0:02:57]}  a6 {[%clk 0:02:57]} 6. e3 {[%clk 0:02:57]}  Nc6 {[%clk 0:02:53]} 7. Be2 {[%clk 0:02:53]}  b5 {[%clk 0:02:48]} 8. Nf3 {[%clk 0:02:51]}  e6 {[%clk 0:02:36]} 9. O-O {[%clk 0:02:39]}  Bd6 {[%clk 0:02:31]} 10. Rc1 {[%clk 0:01:59]}  Bb7 {[%clk 0:02:27]} 11. Nxb5 {[%clk 0:01:34]}  axb5 {[%clk 0:02:13]} 12. Bxb5 {[%clk 0:01:29]}  Bxf4 {[%clk 0:02:00]} 13. exf4 {[%clk 0:01:19]}  Qb6 {[%clk 0:01:23]} 14. Qb3 {[%clk 0:01:09]}  O-O {[%clk 0:00:48]} 15. Bxc6 {[%clk 0:01:06]}  Qxb3 {[%clk 0:00:46]} 16. axb3 {[%clk 0:01:07]}  Bxc6 {[%clk 0:00:39]} 17. Rxc6 {[%clk 0:01:08]}  Rfb8 {[%clk 0:00:38]} 18. Rfc1 {[%clk 0:01:08]}  h6 {[%clk 0:00:35]} 19. Ne5 {[%clk 0:00:54]}  Rxb3 {[%clk 0:00:25]} 20. Rc8+ {[%clk 0:00:53]}  Rxc8 {[%clk 0:00:26]} 21. Rxc8+ {[%clk 0:00:53]}  Kh7 {[%clk 0:00:27]} 22. h3 {[%clk 0:00:43]}  Rxb2 {[%clk 0:00:25]} 23. Nxf7 {[%clk 0:00:43]}  Rb1+ {[%clk 0:00:14]} 24. Kh2 {[%clk 0:00:42]}  Ne4 {[%clk 0:00:13]} 25. g4 {[%clk 0:00:31]}  Kg6 {[%clk 0:00:09]} 26. Ne5+ {[%clk 0:00:27]}  Kh7 {[%clk 0:00:03]} 27. Nd7 {[%clk 0:00:27]}  g5 {[%clk 0:00:02]} 28. Nf8+ {[%clk 0:00:26]}  Kg7 {[%clk 0:00:02]} 29. Nxe6+ {[%clk 0:00:27]}  Kf6 {[%clk 0:00:02]} 30. Rc6 {[%clk 0:00:24]}  Nxf2 {[%clk 0:00:02]} 31. Nxg5+ {[%clk 0:00:20]}  Kg7 {[%clk 0:00:02]} 32. Ne6+ {[%clk 0:00:18]}  Kf6 {[%clk 0:00:03]} 33. Nc7+ {[%clk 0:00:17]}  Kg7 {[%clk 0:00:03]} 34. Nxd5 {[%clk 0:00:17]}  Rb2 {[%clk 0:00:04]} 35. Kg3 {[%clk 0:00:17]}  Ne4+ {[%clk 0:00:04]} 36. Kf3 {[%clk 0:00:18]}  Nd2+ {[%clk 0:00:02]} 37. Ke3 {[%clk 0:00:18]}  Nf1+ {[%clk 0:00:03]} 38. Ke4 {[%clk 0:00:17]}  Re2+ {[%clk 0:00:03]} 39. Kf3 {[%clk 0:00:16]}  Rd2 {[%clk 0:00:02]} 40. Ne7 {[%clk 0:00:15]}  Nh2+ {[%clk 0:00:01]} 41. Kg3 {[%clk 0:00:13]}  Nf1+ {[%clk 0:00:02]} 42. Kh4 {[%clk 0:00:13]}  Rxd4 {[%clk 0:00:02]} 43. Nf5+ {[%clk 0:00:14]}  Kh7 {[%clk 0:00:02]} 44. Nxd4 {[%clk 0:00:15]}  Ne3 {[%clk 0:00:02]} 45. Rc7+ {[%clk 0:00:14]}  Kg6 {[%clk 0:00:03]} 46. f5+ {[%clk 0:00:14]}  Kf6 {[%clk 0:00:03]} 47. Kh5 {[%clk 0:00:14]}  Ke5 {[%clk 0:00:04]} 48. Re7+ {[%clk 0:00:14]}  Kxd4 {[%clk 0:00:05]} 49. Rxe3 {[%clk 0:00:14]}  Kxe3 {[%clk 0:00:06]} 50. f6 {[%clk 0:00:15]} 1-0


[Site "https://www.chess.com"]

[Event "Titled Tuesday Blitz February 28 Late 2023"]
[White "Molenda, Marcin"]
[Black "Sarana, Alexey"]
[WhiteFideId "1173065"]
[BlackFideId "24133795"]
[WhiteElo "2286"]
[BlackElo "2717"]
[Result "0-1"]
[Round "01"]
[TimeControl "180+2"]
[Date "2023.02.28"]
[WhiteClock "0:00:06"]
[BlackClock "0:01:00"]

1. e4 {[%clk 0:02:59]}  c5 {[%clk 0:02:59]} 2. Nf3 {[%clk 0:02:59]}  d6 {[%clk 0:03:00]} 3. d4 {[%clk 0:02:59]}  cxd4 {[%clk 0:03:01]} 4. Nxd4 {[%clk 0:02:59]}  Nf6 {[%clk 0:03:02]} 5. Nc3 {[%clk 0:02:58]}  a6 {[%clk 0:03:02]} 6. f3 {[%clk 0:02:59]}  e5 {[%clk 0:03:02]} 7. Nb3 {[%clk 0:02:59]}  Be6 {[%clk 0:03:03]} 8. Be3 {[%clk 0:02:59]}  Nbd7 {[%clk 0:03:03]} 9. Nd5 {[%clk 0:02:56]}  Nxd5 {[%clk 0:03:02]} 10. exd5 {[%clk 0:02:57]}  Bf5 {[%clk 0:03:02]} 11. Qd2 {[%clk 0:02:53]}  Be7 {[%clk 0:02:58]} 12. c4 {[%clk 0:02:42]}  a5 {[%clk 0:02:57]} 13. Be2 {[%clk 0:02:41]}  a4 {[%clk 0:02:56]} 14. Nc1 {[%clk 0:02:41]}  O-O {[%clk 0:02:51]} 15. O-O {[%clk 0:02:41]}  Bg6 {[%clk 0:02:46]} 16. Nd3 {[%clk 0:02:39]}  Bf6 {[%clk 0:02:33]} 17. Nf2 {[%clk 0:02:24]}  b6 {[%clk 0:02:31]} 18. Bd3 {[%clk 0:02:23]}  Nc5 {[%clk 0:02:27]} 19. Bxc5 {[%clk 0:02:22]}  bxc5 {[%clk 0:02:28]} 20. Bxg6 {[%clk 0:02:22]}  hxg6 {[%clk 0:02:27]} 21. Ne4 {[%clk 0:02:22]}  Be7 {[%clk 0:02:28]} 22. g4 {[%clk 0:02:16]}  f5 {[%clk 0:02:28]} 23. Ng3 {[%clk 0:02:16]}  Bg5 {[%clk 0:02:28]} 24. Qd3 {[%clk 0:02:09]}  Bf4 {[%clk 0:02:26]} 25. gxf5 {[%clk 0:01:50]}  gxf5 {[%clk 0:02:27]} 26. Rf2 {[%clk 0:01:40]}  Qe8 {[%clk 0:01:57]} 27. Rg2 {[%clk 0:01:33]}  Qf7 {[%clk 0:01:57]} 28. Kh1 {[%clk 0:01:30]}  Bh6 {[%clk 0:01:57]} 29. Rag1 {[%clk 0:01:30]}  Rab8 {[%clk 0:01:56]} 30. Qc2 {[%clk 0:01:14]}  Rb4 {[%clk 0:01:56]} 31. Nf1 {[%clk 0:00:58]}  Qh5 {[%clk 0:01:54]} 32. f4 {[%clk 0:00:49]}  exf4 {[%clk 0:01:51]} 33. Qc3 {[%clk 0:00:40]}  Rf7 {[%clk 0:01:50]} 34. Nd2 {[%clk 0:00:38]}  Rbb7 {[%clk 0:01:46]} 35. Nf3 {[%clk 0:00:35]}  Rbe7 {[%clk 0:01:46]} 36. Ng5 {[%clk 0:00:35]}  Bxg5 {[%clk 0:01:15]} 37. Rxg5 {[%clk 0:00:36]}  Qe2 {[%clk 0:01:15]} 38. Qh3 {[%clk 0:00:22]}  Qe4+ {[%clk 0:01:13]} 39. R5g2 {[%clk 0:00:19]}  Qxc4 {[%clk 0:01:10]} 40. Qf3 {[%clk 0:00:10]}  Qe4 {[%clk 0:01:10]} 41. Qh5 {[%clk 0:00:08]}  Qxd5 {[%clk 0:01:09]} 42. h4 {[%clk 0:00:07]}  f3 {[%clk 0:01:09]} 43. Rf2 {[%clk 0:00:06]}  Re2 {[%clk 0:01:09]} 44. Rgf1 {[%clk 0:00:07]}  Qe5 {[%clk 0:01:05]} 45. Qxf3 {[%clk 0:00:05]}  Rxf2 {[%clk 0:01:06]} 46. Qxf2 {[%clk 0:00:05]}  f4 {[%clk 0:01:04]} 47. Re1 {[%clk 0:00:05]}  Qd5+ {[%clk 0:01:04]} 48. Kh2 {[%clk 0:00:05]}  f3 {[%clk 0:01:04]} 49. Re8+ {[%clk 0:00:05]}  Kh7 {[%clk 0:01:03]} 50. Qc2+ {[%clk 0:00:06]}  Qf5 {[%clk 0:01:03]} 51. Qf2 {[%clk 0:00:05]}  Qg4 {[%clk 0:01:01]} 52. Rd8 {[%clk 0:00:04]}  Rf6 {[%clk 0:01:00]} 53. Qc2+ {[%clk 0:00:03]}  Rg6 {[%clk 0:01:00]} 54. Qf2 {[%clk 0:00:03]}  Qg2+ {[%clk 0:01:00]} 55. Qxg2 {[%clk 0:00:03]}  Rxg2+ {[%clk 0:01:01]} 56. Kh3 {[%clk 0:00:04]}  Rxb2 {[%clk 0:01:01]} 57. Rxd6 {[%clk 0:00:04]}  Rxa2 {[%clk 0:01:01]} 58. Rc6 {[%clk 0:00:04]}  Rc2 {[%clk 0:01:01]} 59. Ra6 {[%clk 0:00:04]}  Ra2 {[%clk 0:00:56]} 60. Rc6 {[%clk 0:00:04]}  a3 {[%clk 0:00:57]} 61. Rxc5 {[%clk 0:00:05]}  Rb2 {[%clk 0:00:57]} 62. Ra5 {[%clk 0:00:05]}  a2 {[%clk 0:00:58]} 63. Kg3 {[%clk 0:00:05]}  f2 {[%clk 0:00:58]} 64. Kg2 {[%clk 0:00:06]}  f1=Q+ {[%clk 0:00:59]} 65. Kxf1 {[%clk 0:00:06]}  Rb1+ {[%clk 0:01:00]} 0-1


[Site "https://www.chess.com"]

[Event "Titled Tuesday Blitz February 28 Late 2023"]
[White "Prydun, Andriy"]
[Black "Fressinet, Laurent"]
[WhiteFideId "14145898"]
[BlackFideId "608742"]
[WhiteElo "2164"]
[BlackElo "2633"]
[Result "0-1"]
[Round "01"]
[TimeControl "180+2"]
[Date "2023.02.28"]
[WhiteClock "0:00:03"]
[BlackClock "0:00:04"]

1. e4 {[%clk 0:02:44]}  g6 {[%clk 0:02:56]} 2. d4 {[%clk 0:02:43]}  Bg7 {[%clk 0:02:56]} 3. h3 {[%clk 0:02:42]}  d6 {[%clk 0:02:54]} 4. c3 {[%clk 0:02:41]}  Nc6 {[%clk 0:02:51]} 5. Nd2 {[%clk 0:02:40]}  e5 {[%clk 0:02:51]} 6. d5 {[%clk 0:02:39]}  Nce7 {[%clk 0:02:51]} 7. g4 {[%clk 0:02:39]}  f5 {[%clk 0:02:48]} 8. gxf5 {[%clk 0:02:39]}  gxf5 {[%clk 0:02:49]} 9. Qh5+ {[%clk 0:02:38]}  Kf8 {[%clk 0:02:49]} 10. exf5 {[%clk 0:02:35]}  Nf6 {[%clk 0:02:47]} 11. Qe2 {[%clk 0:02:28]}  Nexd5 {[%clk 0:02:44]} 12. Ne4 {[%clk 0:02:25]}  Bxf5 {[%clk 0:02:42]} 13. Bg2 {[%clk 0:02:23]}  c6 {[%clk 0:02:32]} 14. Bg5 {[%clk 0:02:22]}  Qd7 {[%clk 0:02:27]} 15. O-O-O {[%clk 0:02:17]}  Nxe4 {[%clk 0:02:12]} 16. Bxe4 {[%clk 0:02:18]}  Bxe4 {[%clk 0:01:57]} 17. Qxe4 {[%clk 0:02:19]}  Qe6 {[%clk 0:01:56]} 18. Ne2 {[%clk 0:01:58]}  Nf6 {[%clk 0:01:41]} 19. Qb4 {[%clk 0:01:52]}  Ne8 {[%clk 0:01:18]} 20. Qxb7 {[%clk 0:01:50]}  Rc8 {[%clk 0:01:18]} 21. f4 {[%clk 0:01:43]}  Rc7 {[%clk 0:01:17]} 22. Qb4 {[%clk 0:01:41]}  Rf7 {[%clk 0:01:12]} 23. Rhf1 {[%clk 0:01:39]}  e4 {[%clk 0:01:11]} 24. f5 {[%clk 0:01:34]}  Rxf5 {[%clk 0:00:56]} 25. Ng3 {[%clk 0:01:34]}  Rxf1 {[%clk 0:00:46]} 26. Rxf1+ {[%clk 0:01:35]}  Kg8 {[%clk 0:00:46]} 27. Qxe4 {[%clk 0:01:08]}  Qxe4 {[%clk 0:00:45]} 28. Nxe4 {[%clk 0:01:09]}  h6 {[%clk 0:00:46]} 29. Be3 {[%clk 0:01:08]}  d5 {[%clk 0:00:42]} 30. Ng3 {[%clk 0:01:06]}  a6 {[%clk 0:00:40]} 31. Nh5 {[%clk 0:01:04]}  Be5 {[%clk 0:00:33]} 32. Bc5 {[%clk 0:00:53]}  Bd6 {[%clk 0:00:29]} 33. Bxd6 {[%clk 0:00:48]}  Nxd6 {[%clk 0:00:30]} 34. Rf6 {[%clk 0:00:48]}  Ne4 {[%clk 0:00:25]} 35. Rxc6 {[%clk 0:00:48]}  Kf7 {[%clk 0:00:25]} 36. Rxa6 {[%clk 0:00:44]}  Rg8 {[%clk 0:00:25]} 37. Rxh6 {[%clk 0:00:42]}  Rg1+ {[%clk 0:00:24]} 38. Kc2 {[%clk 0:00:42]}  Rg2+ {[%clk 0:00:24]} 39. Kb3 {[%clk 0:00:41]}  Nd2+ {[%clk 0:00:23]} 40. Kb4 {[%clk 0:00:39]}  Ne4 {[%clk 0:00:22]} 41. b3 {[%clk 0:00:33]}  Rxa2 {[%clk 0:00:18]} 42. Nf4 {[%clk 0:00:32]}  Rd2 {[%clk 0:00:18]} 43. Ne6 {[%clk 0:00:12]}  Rc2 {[%clk 0:00:14]} 44. Nd4 {[%clk 0:00:07]}  Rxc3 {[%clk 0:00:13]} 45. Rh5 {[%clk 0:00:06]}  Rd3 {[%clk 0:00:09]} 46. Rxd5 {[%clk 0:00:05]}  Rd1 {[%clk 0:00:09]} 47. Kc4 {[%clk 0:00:03]}  Nf6 {[%clk 0:00:08]} 48. Rf5 {[%clk 0:00:03]}  Rc1+ {[%clk 0:00:07]} 49. Kd3 {[%clk 0:00:02]}  Rh1 {[%clk 0:00:08]} 50. Rf3 {[%clk 0:00:02]}  Kg6 {[%clk 0:00:07]} 51. Kc4 {[%clk 0:00:03]}  Nd7 {[%clk 0:00:07]} 52. Kd5 {[%clk 0:00:03]}  Nf6+ {[%clk 0:00:07]} 53. Kc4 {[%clk 0:00:02]}  Rc1+ {[%clk 0:00:06]} 54. Kd3 {[%clk 0:00:03]}  Nd7 {[%clk 0:00:06]} 55. b4 {[%clk 0:00:03]}  Ne5+ {[%clk 0:00:06]} 56. Ke4 {[%clk 0:00:04]}  Nxf3 {[%clk 0:00:06]} 57. Nxf3 {[%clk 0:00:04]}  Rc4+ {[%clk 0:00:05]} 58. Ke3 {[%clk 0:00:03]}  Rxb4 {[%clk 0:00:06]} 59. Kf2 {[%clk 0:00:03]}  Kf5 {[%clk 0:00:06]} 60. Kg3 {[%clk 0:00:04]}  Rb3 {[%clk 0:00:06]} 61. Kg2 {[%clk 0:00:03]}  Kf4 {[%clk 0:00:06]} 62. Nh4 {[%clk 0:00:02]}  Rb2+ {[%clk 0:00:06]} 63. Kf1 {[%clk 0:00:02]}  Kg3 {[%clk 0:00:03]} 64. Nf5+ {[%clk 0:00:03]}  Kf3 {[%clk 0:00:03]} 65. Nd4+ {[%clk 0:00:02]}  Ke3 {[%clk 0:00:03]} 66. Nf5+ {[%clk 0:00:03]}  Kf4 {[%clk 0:00:03]} 67. Nd4 {[%clk 0:00:03]}  Kg3 {[%clk 0:00:04]} 68. Ne2+ {[%clk 0:00:03]}  Kxh3 {[%clk 0:00:04]} 69. Kf2 {[%clk 0:00:04]}  Kg4 {[%clk 0:00:04]} 70. Ke3 {[%clk 0:00:04]}  Rb3+ {[%clk 0:00:03]} 71. Ke4 {[%clk 0:00:04]}  Rb1 {[%clk 0:00:03]} 72. Ke3 {[%clk 0:00:03]}  Re1 {[%clk 0:00:04]} 73. Kf2 {[%clk 0:00:03]}  Rh1 {[%clk 0:00:04]} 74. Ke3 {[%clk 0:00:04]}  Rh2 {[%clk 0:00:04]} 75. Nd4 {[%clk 0:00:03]}  Kg3 {[%clk 0:00:03]} 76. Ke4 {[%clk 0:00:03]}  Rh4+ {[%clk 0:00:03]} 77. Ke3 {[%clk 0:00:04]}  Kg2 {[%clk 0:00:03]} 78. Nf3 {[%clk 0:00:03]}  Rh3 {[%clk 0:00:04]} 0-1


[Site "https://www.chess.com"]

[Event "Titled Tuesday Blitz February 28 Late 2023"]
[White "Bortnyk, Mykola"]
[Black "Karamsetty, Jeevan"]
[WhiteFideId "14120836"]
[BlackFideId "2025337"]
[WhiteElo "2582"]
[BlackElo "2111"]
[Result "1-0"]
[Round "01"]
[TimeControl "180+2"]
[Date "2023.02.28"]
[WhiteClock "0:01:01"]
[BlackClock "0:00:03"]

1. c4 {[%clk 0:02:59]}  Nf6 {[%clk 0:02:56]} 2. g3 {[%clk 0:02:58]}  e6 {[%clk 0:02:56]} 3. Bg2 {[%clk 0:02:59]}  d5 {[%clk 0:02:57]} 4. b3 {[%clk 0:02:57]}  Be7 {[%clk 0:02:56]} 5. Bb2 {[%clk 0:02:57]}  O-O {[%clk 0:02:56]} 6. Nf3 {[%clk 0:02:53]}  c5 {[%clk 0:02:55]} 7. e3 {[%clk 0:02:53]}  Nc6 {[%clk 0:02:56]} 8. cxd5 {[%clk 0:02:39]}  exd5 {[%clk 0:02:55]} 9. d3 {[%clk 0:02:35]}  b6 {[%clk 0:02:50]} 10. O-O {[%clk 0:02:34]}  Bb7 {[%clk 0:02:47]} 11. Nbd2 {[%clk 0:02:32]}  Nb4 {[%clk 0:02:38]} 12. Ne1 {[%clk 0:02:30]}  Ba6 {[%clk 0:02:28]} 13. Ndf3 {[%clk 0:02:26]}  Rc8 {[%clk 0:02:24]} 14. Ne5 {[%clk 0:02:24]}  Re8 {[%clk 0:01:59]} 15. a3 {[%clk 0:02:21]}  Nc6 {[%clk 0:01:58]} 16. f4 {[%clk 0:02:20]}  Bb7 {[%clk 0:01:41]} 17. N1f3 {[%clk 0:02:14]}  Bd6 {[%clk 0:01:36]} 18. Qc2 {[%clk 0:02:05]}  Nd7 {[%clk 0:01:27]} 19. Bh3 {[%clk 0:02:00]}  Bxe5 {[%clk 0:01:20]} 20. Nxe5 {[%clk 0:01:57]}  Ncxe5 {[%clk 0:01:17]} 21. fxe5 {[%clk 0:01:56]}  Rc7 {[%clk 0:01:16]} 22. d4 {[%clk 0:01:36]}  cxd4 {[%clk 0:01:10]} 23. Qf5 {[%clk 0:01:35]}  Nxe5 {[%clk 0:01:06]} 24. Bxd4 {[%clk 0:01:36]}  Ng6 {[%clk 0:00:47]} 25. Bg2 {[%clk 0:01:35]}  Rce7 {[%clk 0:00:43]} 26. h4 {[%clk 0:01:35]}  Ne5 {[%clk 0:00:39]} 27. h5 {[%clk 0:01:32]}  f6 {[%clk 0:00:37]} 28. h6 {[%clk 0:01:32]}  Bc8 {[%clk 0:00:33]} 29. Qf4 {[%clk 0:01:27]}  Ng6 {[%clk 0:00:29]} 30. Qf3 {[%clk 0:01:24]}  Re4 {[%clk 0:00:19]} 31. hxg7 {[%clk 0:01:25]}  Rxd4 {[%clk 0:00:19]} 32. exd4 {[%clk 0:01:24]}  Kxg7 {[%clk 0:00:19]} 33. Qxd5 {[%clk 0:01:23]}  Qxd5 {[%clk 0:00:19]} 34. Bxd5 {[%clk 0:01:24]}  Rd8 {[%clk 0:00:20]} 35. Rac1 {[%clk 0:01:17]}  Bg4 {[%clk 0:00:16]} 36. Bf3 {[%clk 0:01:16]}  Bxf3 {[%clk 0:00:16]} 37. Rxf3 {[%clk 0:01:17]}  Rxd4 {[%clk 0:00:16]} 38. Rc7+ {[%clk 0:01:18]}  Kh6 {[%clk 0:00:17]} 39. Rxa7 {[%clk 0:01:18]}  Rd1+ {[%clk 0:00:13]} 40. Kg2 {[%clk 0:01:17]}  Kg5 {[%clk 0:00:09]} 41. Rxh7 {[%clk 0:01:15]}  Ne5 {[%clk 0:00:09]} 42. Rf2 {[%clk 0:01:14]}  Rd3 {[%clk 0:00:09]} 43. Rg7+ {[%clk 0:01:12]}  Kh6 {[%clk 0:00:09]} 44. Rg8 {[%clk 0:01:12]}  Rxb3 {[%clk 0:00:08]} 45. Rxf6+ {[%clk 0:01:10]}  Kh7 {[%clk 0:00:09]} 46. Rg5 {[%clk 0:01:11]}  Re3 {[%clk 0:00:04]} 47. Rff5 {[%clk 0:01:09]}  Ng6 {[%clk 0:00:03]} 48. Rf7+ {[%clk 0:01:05]}  Kh6 {[%clk 0:00:03]} 49. Rb5 {[%clk 0:01:05]}  Re2+ {[%clk 0:00:03]} 50. Kf1 {[%clk 0:01:05]}  Re6 {[%clk 0:00:04]} 51. Rb7 {[%clk 0:01:04]}  Rf6+ {[%clk 0:00:04]} 52. Kg1 {[%clk 0:01:03]}  Rf3 {[%clk 0:00:04]} 53. g4 {[%clk 0:01:02]}  Rxa3 {[%clk 0:00:03]} 54. Rh5# {[%clk 0:01:01]} 1-0


[Site "https://www.chess.com"]